[Event "Early-Titled-Tuesday-Blitz-January-23-2024"]
[Site "Chess.com"]
[Date "2024.01.23"]
[Round "7"]
[White "jcibarra"]
[Black "Oleksandr_Bortnyk"]
[Result "0-1"]
[WhiteElo "2837"]
[BlackElo "3076"]
[TimeControl "180+1"]
[EndTime "9:17:06 PST"]
[Termination "Oleksandr_Bortnyk won by resignation"]

1. e4 {[%clk 0:03:00.9]} 1... Nf6 {[%clk 0:02:50.6]} 2. e5 {[%clk 0:02:58.3]}
2... Nd5 {[%clk 0:02:51]} 3. d4 {[%clk 0:02:58.8]} 3... d6 {[%clk 0:02:51.6]} 4.
c4 {[%clk 0:02:59]} 4... Nb6 {[%clk 0:02:51.7]} 5. exd6 {[%clk 0:02:59.8]} 5...
exd6 {[%clk 0:02:52.5]} 6. Nc3 {[%clk 0:02:59.9]} 6... Be7 {[%clk 0:02:53.2]} 7.
h3 {[%clk 0:02:59]} 7... O-O {[%clk 0:02:53.3]} 8. Nf3 {[%clk 0:02:59.5]} 8...
Nc6 {[%clk 0:02:52.2]} 9. d5 {[%clk 0:02:54.3]} 9... Ne5 {[%clk 0:02:50]} 10.
Nxe5 {[%clk 0:02:32.9]} 10... dxe5 {[%clk 0:02:50.9]} 11. Be2 {[%clk 0:02:31.7]}
11... Bf5 {[%clk 0:02:43.9]} 12. O-O {[%clk 0:02:30.8]} 12... Bg6 {[%clk
0:02:44]} 13. Be3 {[%clk 0:02:29.3]} 13... Nd7 {[%clk 0:02:43.5]} 14. a3 {[%clk
0:02:21.7]} 14... a5 {[%clk 0:02:43.7]} 15. Bd3 {[%clk 0:02:16.9]} 15... f5
{[%clk 0:02:43.2]} 16. f4 {[%clk 0:02:12.3]} 16... e4 {[%clk 0:02:39.6]} 17. Be2
{[%clk 0:02:11.5]} 17... b6 {[%clk 0:02:32.2]} 18. Qd2 {[%clk 0:02:07.4]} 18...
Bc5 {[%clk 0:02:28.4]} 19. Bd1 {[%clk 0:01:40.2]} 19... Be8 {[%clk 0:02:21.6]}
20. Ba4 {[%clk 0:01:36.2]} 20... Bxe3+ {[%clk 0:02:19.6]} 21. Qxe3 {[%clk
0:01:37.1]} 21... Nc5 {[%clk 0:02:20.3]} 22. Bc2 {[%clk 0:01:27.7]} 22... a4
{[%clk 0:02:15.6]} 23. Rad1 {[%clk 0:01:27.4]} 23... Bd7 {[%clk 0:02:01.3]} 24.
Rd2 {[%clk 0:01:25.1]} 24... Qh4 {[%clk 0:01:58.7]} 25. Kh2 {[%clk 0:01:24.9]}
25... h6 {[%clk 0:01:51.9]} 26. Qd4 {[%clk 0:01:05.9]} 26... Qf6 {[%clk
0:01:36.6]} 27. Qxf6 {[%clk 0:01:03.4]} 27... Rxf6 {[%clk 0:01:37.5]} 28. Nd1
{[%clk 0:01:03.7]} 28... Kf7 {[%clk 0:01:31.6]} 29. Ne3 {[%clk 0:01:04]} 29...
Ke7 {[%clk 0:01:32]} 30. g4 {[%clk 0:01:02.6]} 30... fxg4 {[%clk 0:01:23]} 31.
hxg4 {[%clk 0:01:02.7]} 31... Raf8 {[%clk 0:01:23.2]} 32. Kg3 {[%clk 0:01:02.6]}
32... Kd6 {[%clk 0:01:22.6]} 33. Rd4 {[%clk 0:00:59.4]} 33... g5 {[%clk
0:01:14.6]} 34. f5 {[%clk 0:00:57.1]} 34... h5 {[%clk 0:01:15.1]} 35. gxh5
{[%clk 0:00:54.4]} 35... Bxf5 {[%clk 0:01:15.5]} 36. Rd2 {[%clk 0:00:48.9]}
36... Bh7 {[%clk 0:01:03.1]} 37. Rxf6+ {[%clk 0:00:47.2]} 37... Rxf6 {[%clk
0:01:04]} 38. Rf2 {[%clk 0:00:46]} 38... Rxf2 {[%clk 0:01:02.8]} 39. Kxf2 {[%clk
0:00:46.9]} 39... Ke5 {[%clk 0:01:03.6]} 40. Ng4+ {[%clk 0:00:34.4]} 40... Kf4
{[%clk 0:01:01]} 41. Nf6 {[%clk 0:00:34.7]} 41... e3+ {[%clk 0:01:01.3]} 42. Kg1
{[%clk 0:00:01.9]} 42... Bxc2 {[%clk 0:01:02.2]} 43. h6 {[%clk 0:00:01.8]} 43...
Kf3 {[%clk 0:00:59.3]} 44. h7 {[%clk 0:00:01.4]} 44... Bxh7 {[%clk 0:00:59]} 45.
Nxh7 {[%clk 0:00:02.3]} 45... e2 {[%clk 0:00:58.8]} 0-1

[Event "Early-Titled-Tuesday-Blitz-January-23-2024"]
[Site "Chess.com"]
[Date "2024.01.23"]
[Round "7"]
[White "norwaytoadog"]
[Black "ilushka"]
[Result "0-1"]
[WhiteElo "2287"]
[BlackElo "2454"]
[TimeControl "180+1"]
[EndTime "9:17:08 PST"]
[Termination "ilushka won on time"]

1. e4 {[%clk 0:02:59.3]} 1... e5 {[%clk 0:03:00.4]} 2. Nf3 {[%clk 0:02:59.7]}
2... Nc6 {[%clk 0:03:00.5]} 3. Bb5 {[%clk 0:03:00.1]} 3... Nf6 {[%clk
0:03:00.8]} 4. d3 {[%clk 0:02:57.7]} 4... Bc5 {[%clk 0:03:00.3]} 5. Bxc6 {[%clk
0:02:57.2]} 5... dxc6 {[%clk 0:03:00.2]} 6. Nbd2 {[%clk 0:02:57.8]} 6... Bd6
{[%clk 0:02:57.4]} 7. Qe2 {[%clk 0:02:52.5]} 7... O-O {[%clk 0:02:57]} 8. h4
{[%clk 0:02:46.7]} 8... Bg4 {[%clk 0:02:56]} 9. Nf1 {[%clk 0:02:44.9]} 9... Nd7
{[%clk 0:02:51]} 10. Ne3 {[%clk 0:02:44.7]} 10... Bxf3 {[%clk 0:02:51.1]} 11.
Qxf3 {[%clk 0:02:44.3]} 11... Nc5 {[%clk 0:02:49.5]} 12. h5 {[%clk 0:02:38.6]}
12... Ne6 {[%clk 0:02:48.9]} 13. Nf5 {[%clk 0:02:25.3]} 13... Nd4 {[%clk
0:02:44.1]} 14. Nxd4 {[%clk 0:02:25.3]} 14... exd4 {[%clk 0:02:45]} 15. Bd2
{[%clk 0:02:21.6]} 15... Qe7 {[%clk 0:02:41.3]} 16. g4 {[%clk 0:02:21.3]} 16...
Qe6 {[%clk 0:02:36.9]} 17. Qf5 {[%clk 0:02:08]} 17... Rae8 {[%clk 0:02:33.1]}
18. b3 {[%clk 0:01:52.9]} 18... c5 {[%clk 0:02:27.3]} 19. O-O-O {[%clk
0:01:49.6]} 19... b5 {[%clk 0:02:19.4]} 20. f4 {[%clk 0:01:47.7]} 20... c4
{[%clk 0:02:16.6]} 21. Qxe6 {[%clk 0:01:45.1]} 21... fxe6 {[%clk 0:02:08.2]} 22.
f5 {[%clk 0:01:34.6]} 22... c3 {[%clk 0:02:00.1]} 23. Bg5 {[%clk 0:01:23.9]}
23... h6 {[%clk 0:01:57.7]} 24. Bh4 {[%clk 0:01:23]} 24... a5 {[%clk 0:01:49.7]}
25. Rdf1 {[%clk 0:01:16.2]} 25... a4 {[%clk 0:01:44]} 26. Kd1 {[%clk 0:00:47.9]}
26... axb3 {[%clk 0:01:34.4]} 27. axb3 {[%clk 0:00:47.8]} 27... exf5 {[%clk
0:01:32.8]} 28. gxf5 {[%clk 0:00:46.7]} 28... Ra8 {[%clk 0:01:32.4]} 29. f6
{[%clk 0:00:45]} 29... Ra1+ {[%clk 0:01:22]} 30. Ke2 {[%clk 0:00:44.8]} 30...
Ra2 {[%clk 0:01:22.1]} 31. Kd1 {[%clk 0:00:31.8]} 31... gxf6 {[%clk 0:01:21]}
32. Rhg1+ {[%clk 0:00:29.8]} 32... Kh7 {[%clk 0:01:18.2]} 33. Bxf6 {[%clk
0:00:06.1]} 33... Rxf6 {[%clk 0:01:14.4]} 34. Rxf6 {[%clk 0:00:06.2]} 34... Ra1+
{[%clk 0:01:14.5]} 35. Ke2 {[%clk 0:00:06.8]} 35... Rxg1 {[%clk 0:01:14.9]} 36.
Rf5 {[%clk 0:00:05.7]} 36... Rc1 {[%clk 0:01:12.6]} 37. e5 {[%clk 0:00:03.5]}
37... Rxc2+ {[%clk 0:01:11.7]} 38. Kf3 {[%clk 0:00:03.8]} 38... Ba3 {[%clk
0:01:03.7]} 39. e6 {[%clk 0:00:03.4]} 39... Rd2 {[%clk 0:01:01.3]} 40. Ke4
{[%clk 0:00:02.2]} 40... c2 {[%clk 0:01:00.7]} 41. Rf7+ {[%clk 0:00:02.7]} 41...
Kg8 {[%clk 0:01:00.2]} 0-1

[Event "Early-Titled-Tuesday-Blitz-January-23-2024"]
[Site "Chess.com"]
[Date "2024.01.23"]
[Round "7"]
[White "hawes33"]
[Black "Egorov_Pavel"]
[Result "1/2-1/2"]
[WhiteElo "2309"]
[BlackElo "2484"]
[TimeControl "180+1"]
[EndTime "9:17:11 PST"]
[Termination "Game drawn by repetition"]

1. e4 {[%clk 0:02:51.8]} 1... c5 {[%clk 0:02:59.8]} 2. Nc3 {[%clk 0:02:51.2]}
2... Nc6 {[%clk 0:02:59.7]} 3. g3 {[%clk 0:02:45.1]} 3... h5 {[%clk 0:02:57.6]}
4. d3 {[%clk 0:02:44.4]} 4... h4 {[%clk 0:02:58]} 5. gxh4 {[%clk 0:02:42.7]}
5... e6 {[%clk 0:02:53.1]} 6. Bg5 {[%clk 0:02:42.1]} 6... Be7 {[%clk 0:02:53.4]}
7. Qd2 {[%clk 0:02:42]} 7... Nd4 {[%clk 0:02:52.8]} 8. Bg2 {[%clk 0:02:41.7]}
8... Bxg5 {[%clk 0:02:48.6]} 9. hxg5 {[%clk 0:02:41.6]} 9... Ne7 {[%clk
0:02:47.4]} 10. h4 {[%clk 0:02:40.6]} 10... Nec6 {[%clk 0:02:46.1]} 11. f4
{[%clk 0:02:37.9]} 11... Nb4 {[%clk 0:02:45.5]} 12. Rc1 {[%clk 0:02:36.7]} 12...
d6 {[%clk 0:02:38.2]} 13. a3 {[%clk 0:02:36.1]} 13... Nbc6 {[%clk 0:02:38.6]}
14. Nf3 {[%clk 0:02:35.4]} 14... Nxf3+ {[%clk 0:02:37.3]} 15. Bxf3 {[%clk
0:02:36.3]} 15... Nd4 {[%clk 0:02:38]} 16. Bg2 {[%clk 0:02:36.6]} 16... g6
{[%clk 0:02:36.5]} 17. Qf2 {[%clk 0:02:36]} 17... e5 {[%clk 0:02:35.4]} 18. Nd5
{[%clk 0:02:33.9]} 18... Qa5+ {[%clk 0:02:26]} 19. c3 {[%clk 0:02:32.9]} 19...
Be6 {[%clk 0:02:14.1]} 20. Nf6+ {[%clk 0:02:31.7]} 20... Ke7 {[%clk 0:02:14.6]}
21. O-O {[%clk 0:02:31.5]} 21... Nb3 {[%clk 0:02:03.1]} 22. Rcd1 {[%clk
0:02:22.2]} 22... b5 {[%clk 0:01:34.7]} 23. fxe5 {[%clk 0:02:19.4]} 23... dxe5
{[%clk 0:01:33.6]} 24. Nd5+ {[%clk 0:02:19.5]} 24... Kd7 {[%clk 0:01:24.9]} 25.
Qf6 {[%clk 0:02:18.5]} 25... Qd8 {[%clk 0:01:15.7]} 26. Qxe5 {[%clk 0:02:15.8]}
26... Rxh4 {[%clk 0:01:16.2]} 27. d4 {[%clk 0:02:05.8]} 27... cxd4 {[%clk
0:01:07.3]} 28. cxd4 {[%clk 0:02:03.1]} 28... Rc8 {[%clk 0:01:03.5]} 29. Nf6+
{[%clk 0:01:57.2]} 29... Ke7 {[%clk 0:01:00.2]} 30. d5 {[%clk 0:01:49.9]} 30...
Qb6+ {[%clk 0:01:00.1]} 31. Rf2 {[%clk 0:01:47.3]} 31... Rc2 {[%clk 0:00:40.7]}
32. d6+ {[%clk 0:01:20.8]} 32... Kf8 {[%clk 0:00:40.5]} 33. Nd7+ {[%clk
0:01:11.8]} 33... Bxd7 {[%clk 0:00:30.1]} 34. Qe7+ {[%clk 0:01:11.4]} 34... Kg8
{[%clk 0:00:29.4]} 35. Qxf7+ {[%clk 0:01:10.7]} 35... Kh8 {[%clk 0:00:30.1]} 36.
Qf8+ {[%clk 0:01:07.6]} 36... Kh7 {[%clk 0:00:30.7]} 37. Qf7+ {[%clk 0:01:01.4]}
37... Kh8 {[%clk 0:00:31.1]} 38. Qf8+ {[%clk 0:00:19.9]} 38... Kh7 {[%clk
0:00:30.8]} 39. Qf7+ {[%clk 0:00:18.9]} 39... Kh8 {[%clk 0:00:31.1]} 1/2-1/2

[Event "Early-Titled-Tuesday-Blitz-January-23-2024"]
[Site "Chess.com"]
[Date "2024.01.23"]
[Round "7"]
[White "vladislavkovalev"]
[Black "mac0504"]
[Result "1-0"]
[WhiteElo "2862"]
[BlackElo "2593"]
[TimeControl "180+1"]
[EndTime "9:17:12 PST"]
[Termination "vladislavkovalev won by resignation"]

1. e4 {[%clk 0:03:00.9]} 1... Nc6 {[%clk 0:02:59.6]} 2. Nf3 {[%clk 0:02:56.7]}
2... d6 {[%clk 0:03:00]} 3. d4 {[%clk 0:02:56.7]} 3... Nf6 {[%clk 0:03:00.7]} 4.
Nc3 {[%clk 0:02:56.3]} 4... g6 {[%clk 0:03:01.4]} 5. Be2 {[%clk 0:02:53]} 5...
Bg7 {[%clk 0:03:01.3]} 6. O-O {[%clk 0:02:53.7]} 6... O-O {[%clk 0:03:01.8]} 7.
h3 {[%clk 0:02:54.1]} 7... e5 {[%clk 0:03:01.4]} 8. Be3 {[%clk 0:02:54.8]} 8...
exd4 {[%clk 0:03:00.3]} 9. Nxd4 {[%clk 0:02:55.7]} 9... Bd7 {[%clk 0:03:00.6]}
10. f4 {[%clk 0:02:52.1]} 10... Nxd4 {[%clk 0:02:59.3]} 11. Bxd4 {[%clk
0:02:52.2]} 11... Bc6 {[%clk 0:03:00]} 12. Bf3 {[%clk 0:02:51.9]} 12... Re8
{[%clk 0:03:00.7]} 13. Qd3 {[%clk 0:02:50.7]} 13... Nd7 {[%clk 0:03:00.9]} 14.
Rae1 {[%clk 0:02:25.8]} 14... Nc5 {[%clk 0:02:55.3]} 15. Bxc5 {[%clk 0:02:07.5]}
15... dxc5 {[%clk 0:02:54.7]} 16. Qxd8 {[%clk 0:02:08.4]} 16... Raxd8 {[%clk
0:02:55]} 17. e5 {[%clk 0:02:09.3]} 17... Bxf3 {[%clk 0:02:45.5]} 18. Rxf3
{[%clk 0:02:10.2]} 18... Rd2 {[%clk 0:02:44.4]} 19. Rf2 {[%clk 0:02:01.9]} 19...
Red8 {[%clk 0:02:29.2]} 20. Rxd2 {[%clk 0:01:22.4]} 20... Rxd2 {[%clk
0:02:30.1]} 21. Re2 {[%clk 0:01:23]} 21... Rd4 {[%clk 0:02:29.9]} 22. Ne4 {[%clk
0:01:20.6]} 22... b6 {[%clk 0:02:24.7]} 23. Kf2 {[%clk 0:01:20.4]} 23... Kf8
{[%clk 0:02:07.9]} 24. Ke3 {[%clk 0:01:17.7]} 24... Ke7 {[%clk 0:02:05.3]} 25.
Rd2 {[%clk 0:01:15]} 25... Rxd2 {[%clk 0:01:51.7]} 26. Kxd2 {[%clk 0:01:15.9]}
26... f6 {[%clk 0:01:51.7]} 27. exf6+ {[%clk 0:01:13.2]} 27... Bxf6 {[%clk
0:01:52.6]} 28. Nxf6 {[%clk 0:01:14.1]} 28... Kxf6 {[%clk 0:01:52.7]} 29. Ke3
{[%clk 0:01:13.4]} 29... c6 {[%clk 0:01:33.9]} 30. Ke4 {[%clk 0:01:12.9]} 30...
a5 {[%clk 0:01:28.3]} 31. c4 {[%clk 0:01:07.1]} 31... a4 {[%clk 0:01:22]} 32. g4
{[%clk 0:01:03.5]} 32... Ke6 {[%clk 0:00:47.6]} 33. f5+ {[%clk 0:00:49.7]} 33...
gxf5+ {[%clk 0:00:47.9]} 34. gxf5+ {[%clk 0:00:50.6]} 34... Kd6 {[%clk
0:00:48.5]} 35. Kf4 {[%clk 0:00:49.6]} 35... b5 {[%clk 0:00:42.6]} 36. b3 {[%clk
0:00:50.2]} 36... axb3 {[%clk 0:00:36.7]} 37. axb3 {[%clk 0:00:51.1]} 37... h6
{[%clk 0:00:31]} 38. Ke4 {[%clk 0:00:50.2]} 38... Ke7 {[%clk 0:00:30]} 39. Ke5
{[%clk 0:00:50.8]} 39... bxc4 {[%clk 0:00:21.7]} 40. bxc4 {[%clk 0:00:50.9]}
40... Kf7 {[%clk 0:00:22.5]} 41. f6 {[%clk 0:00:48.9]} 41... Kf8 {[%clk
0:00:22.5]} 42. Kf5 {[%clk 0:00:48.3]} 42... Kf7 {[%clk 0:00:21.7]} 43. h4
{[%clk 0:00:48.9]} 43... h5 {[%clk 0:00:15.5]} 44. Kg5 {[%clk 0:00:49.3]} 44...
Ke6 {[%clk 0:00:16.2]} 45. Kg6 {[%clk 0:00:49.5]} 1-0

[Event "Early-Titled-Tuesday-Blitz-January-23-2024"]
[Site "Chess.com"]
[Date "2024.01.23"]
[Round "7"]
[White "Byniolus"]
[Black "wadsy27"]
[Result "1/2-1/2"]
[WhiteElo "2852"]
[BlackElo "2655"]
[TimeControl "180+1"]
[EndTime "9:17:12 PST"]
[Termination "Game drawn by agreement"]

1. d4 {[%clk 0:03:00.9]} 1... Nf6 {[%clk 0:02:59.4]} 2. Nf3 {[%clk 0:03:01.1]}
2... c5 {[%clk 0:02:59.8]} 3. c3 {[%clk 0:03:01.2]} 3... cxd4 {[%clk 0:02:55.3]}
4. cxd4 {[%clk 0:03:02.1]} 4... d5 {[%clk 0:02:55.5]} 5. Nc3 {[%clk 0:03:02.6]}
5... Nc6 {[%clk 0:02:54.7]} 6. Bf4 {[%clk 0:03:03.3]} 6... a6 {[%clk 0:02:54.7]}
7. e3 {[%clk 0:03:03.6]} 7... Bg4 {[%clk 0:02:52.8]} 8. Bd3 {[%clk 0:03:04.2]}
8... e6 {[%clk 0:02:51]} 9. Qb3 {[%clk 0:03:04.3]} 9... Bxf3 {[%clk 0:02:26.9]}
10. gxf3 {[%clk 0:03:05.2]} 10... Nh5 {[%clk 0:02:22.6]} 11. Qxb7 {[%clk
0:02:48.8]} 11... Na5 {[%clk 0:02:21.8]} 12. Qc7 {[%clk 0:02:48.8]} 12... Nxf4
{[%clk 0:02:20.4]} 13. Qxf4 {[%clk 0:02:49.7]} 13... Bd6 {[%clk 0:01:47.1]} 14.
Qg4 {[%clk 0:02:49.7]} 14... g6 {[%clk 0:01:44.9]} 15. f4 {[%clk 0:02:30]} 15...
Rb8 {[%clk 0:01:37.4]} 16. Rb1 {[%clk 0:02:16.4]} 16... Nc6 {[%clk 0:01:16.3]}
17. O-O {[%clk 0:01:36.5]} 17... Qa5 {[%clk 0:01:11.7]} 18. Qe2 {[%clk
0:01:22.9]} 18... Nb4 {[%clk 0:01:06.5]} 19. a3 {[%clk 0:01:23.2]} 19... Nxd3
{[%clk 0:00:57]} 20. Qxd3 {[%clk 0:01:24.1]} 20... O-O {[%clk 0:00:48.8]} 21.
Qc2 {[%clk 0:01:00.2]} 21... Rfc8 {[%clk 0:00:43]} 22. Rfc1 {[%clk 0:00:59]}
22... Bxa3 {[%clk 0:00:30.4]} 23. Qa4 {[%clk 0:00:18.2]} 23... Qxa4 {[%clk
0:00:20.7]} 24. Nxa4 {[%clk 0:00:19.1]} 24... Rxc1+ {[%clk 0:00:17.5]} 25. Rxc1
{[%clk 0:00:20]} 25... Bxb2 {[%clk 0:00:17.7]} 26. Rb1 {[%clk 0:00:18.9]} 26...
Rb4 {[%clk 0:00:18.1]} 27. Nxb2 {[%clk 0:00:19.2]} 27... a5 {[%clk 0:00:18.7]}
28. Kg2 {[%clk 0:00:13.7]} 28... a4 {[%clk 0:00:18.5]} 29. Ra1 {[%clk
0:00:14.2]} 29... Rxb2 {[%clk 0:00:18.1]} 30. Rxa4 {[%clk 0:00:15.1]} 30... h5
{[%clk 0:00:17.8]} 31. h4 {[%clk 0:00:14.2]} 31... Kg7 {[%clk 0:00:18]} 32. Ra7
{[%clk 0:00:12.1]} 32... Kf6 {[%clk 0:00:18.2]} 33. Rc7 {[%clk 0:00:11.9]}
1/2-1/2

[Event "Early-Titled-Tuesday-Blitz-January-23-2024"]
[Site "Chess.com"]
[Date "2024.01.23"]
[Round "7"]
[White "GothamChess"]
[Black "Airquake"]
[Result "1-0"]
[WhiteElo "2755"]
[BlackElo "2544"]
[TimeControl "180+1"]
[EndTime "9:17:12 PST"]
[Termination "GothamChess won by resignation"]

1. e4 {[%clk 0:03:00.9]} 1... c5 {[%clk 0:02:59.5]} 2. Nc3 {[%clk 0:03:00.8]}
2... g6 {[%clk 0:02:58.5]} 3. d4 {[%clk 0:03:00.9]} 3... Bg7 {[%clk 0:02:56.2]}
4. Be3 {[%clk 0:02:57.7]} 4... cxd4 {[%clk 0:02:47.3]} 5. Bxd4 {[%clk 0:02:57]}
5... Bxd4 {[%clk 0:02:41.1]} 6. Qxd4 {[%clk 0:02:56.4]} 6... Nf6 {[%clk
0:02:41.5]} 7. Bb5 {[%clk 0:02:42.7]} 7... Nc6 {[%clk 0:02:35.1]} 8. Bxc6 {[%clk
0:02:41.9]} 8... dxc6 {[%clk 0:02:35.5]} 9. Qxd8+ {[%clk 0:02:34.8]} 9... Kxd8
{[%clk 0:02:35.8]} 10. O-O-O+ {[%clk 0:02:27.1]} 10... Kc7 {[%clk 0:02:35.6]}
11. Nf3 {[%clk 0:02:20.6]} 11... Bg4 {[%clk 0:02:31.2]} 12. Rd3 {[%clk
0:02:19.8]} 12... Nd7 {[%clk 0:02:15.4]} 13. Ng5 {[%clk 0:01:57.4]} 13... h6
{[%clk 0:01:43.9]} 14. Nh3 {[%clk 0:00:56.8]} 14... Ne5 {[%clk 0:01:36.7]} 15.
Rg3 {[%clk 0:00:56.4]} 15... Bxh3 {[%clk 0:01:25.9]} 16. Rxh3 {[%clk 0:00:56.2]}
16... Rad8 {[%clk 0:01:22.8]} 17. f4 {[%clk 0:00:54.2]} 17... Ng4 {[%clk
0:01:22.6]} 18. Rf3 {[%clk 0:00:50.8]} 18... h5 {[%clk 0:01:15.4]} 19. h3 {[%clk
0:00:50.4]} 19... Nf6 {[%clk 0:01:15.9]} 20. e5 {[%clk 0:00:44.8]} 20... Nd5
{[%clk 0:01:06.7]} 21. Ne4 {[%clk 0:00:45]} 21... e6 {[%clk 0:01:04.8]} 22. Nd6
{[%clk 0:00:43.7]} 22... Rdf8 {[%clk 0:00:57.7]} 23. c4 {[%clk 0:00:27.9]} 23...
Ne7 {[%clk 0:00:54.2]} 24. Rb3 {[%clk 0:00:27.7]} 24... b6 {[%clk 0:00:53.6]}
25. Ra3 {[%clk 0:00:27.5]} 25... Kb8 {[%clk 0:00:36.3]} 26. Rd1 {[%clk
0:00:27.9]} 26... Rh7 {[%clk 0:00:26.7]} 27. Ne4 {[%clk 0:00:25.1]} 27... Nc8
{[%clk 0:00:04.5]} 28. Nf6 {[%clk 0:00:24.9]} 28... Rhh8 {[%clk 0:00:03]} 29.
Rd7 {[%clk 0:00:22.3]} 29... Rd8 {[%clk 0:00:02]} 30. Rxf7 {[%clk 0:00:22.4]}
30... Rd3 {[%clk 0:00:02]} 31. Rxd3 {[%clk 0:00:21.6]} 1-0

[Event "Early-Titled-Tuesday-Blitz-January-23-2024"]
[Site "Chess.com"]
[Date "2024.01.23"]
[Round "7"]
[White "eljanov"]
[Black "wonderfultime"]
[Result "1-0"]
[WhiteElo "2894"]
[BlackElo "3037"]
[TimeControl "180+1"]
[EndTime "9:17:15 PST"]
[Termination "eljanov won by resignation"]

1. d4 {[%clk 0:03:00.9]} 1... d5 {[%clk 0:02:56.9]} 2. Bf4 {[%clk 0:03:01]} 2...
Nf6 {[%clk 0:02:56]} 3. e3 {[%clk 0:03:01.1]} 3... c5 {[%clk 0:02:56.8]} 4. Nf3
{[%clk 0:03:00.2]} 4... Qb6 {[%clk 0:02:56.4]} 5. Nc3 {[%clk 0:02:57.7]} 5...
Bd7 {[%clk 0:02:56.5]} 6. a4 {[%clk 0:02:42.9]} 6... cxd4 {[%clk 0:02:39.6]} 7.
Nb5 {[%clk 0:02:34.8]} 7... Na6 {[%clk 0:02:30.8]} 8. exd4 {[%clk 0:02:33.5]}
8... g6 {[%clk 0:02:15.8]} 9. h3 {[%clk 0:02:26.7]} 9... Bg7 {[%clk 0:02:14.8]}
10. c3 {[%clk 0:02:26.7]} 10... O-O {[%clk 0:02:14.5]} 11. Bd3 {[%clk
0:02:23.3]} 11... Ne4 {[%clk 0:02:08]} 12. O-O {[%clk 0:02:21.4]} 12... Bxb5
{[%clk 0:02:05.5]} 13. axb5 {[%clk 0:02:18.7]} 13... Nc7 {[%clk 0:02:05.8]} 14.
Qe2 {[%clk 0:02:18.6]} 14... Nd6 {[%clk 0:01:46.9]} 15. Qxe7 {[%clk 0:02:15.7]}
15... Ncxb5 {[%clk 0:01:47.6]} 16. Rfe1 {[%clk 0:01:48.9]} 16... a6 {[%clk
0:01:32.1]} 17. Qg5 {[%clk 0:01:38.1]} 17... Nc7 {[%clk 0:01:26.1]} 18. Qg3
{[%clk 0:01:30.1]} 18... Rad8 {[%clk 0:01:22.4]} 19. Bg5 {[%clk 0:01:19.7]}
19... f6 {[%clk 0:01:22.7]} 20. Bf4 {[%clk 0:01:18.8]} 20... Nce8 {[%clk
0:00:52]} 21. Re2 {[%clk 0:01:10.4]} 21... Ne4 {[%clk 0:00:51.9]} 22. Qh2 {[%clk
0:00:54.7]} 22... N8d6 {[%clk 0:00:49.5]} 23. Rae1 {[%clk 0:00:43.5]} 23... Nf5
{[%clk 0:00:38.6]} 24. Bc7 {[%clk 0:00:38.4]} 24... Qc6 {[%clk 0:00:35]} 25.
Bxd8 {[%clk 0:00:38.4]} 25... Rxd8 {[%clk 0:00:35.3]} 26. Bxe4 {[%clk
0:00:38.8]} 26... dxe4 {[%clk 0:00:36.2]} 27. Rxe4 {[%clk 0:00:39.2]} 27... Bf8
{[%clk 0:00:37.1]} 28. Qf4 {[%clk 0:00:33.3]} 28... Bd6 {[%clk 0:00:34.3]} 29.
Qd2 {[%clk 0:00:33.1]} 29... Kf7 {[%clk 0:00:21.5]} 30. Qe2 {[%clk 0:00:29.8]}
30... Qd7 {[%clk 0:00:20.5]} 31. g4 {[%clk 0:00:27.7]} 31... Ng7 {[%clk
0:00:18.2]} 32. c4 {[%clk 0:00:23.7]} 32... h5 {[%clk 0:00:12.1]} 33. c5 {[%clk
0:00:22.9]} 33... Bb8 {[%clk 0:00:12.5]} 34. Re7+ {[%clk 0:00:21.4]} 1-0

[Event "Early-Titled-Tuesday-Blitz-January-23-2024"]
[Site "Chess.com"]
[Date "2024.01.23"]
[Round "7"]
[White "stollenmonster"]
[Black "Mikhail_Golubev"]
[Result "1-0"]
[WhiteElo "2896"]
[BlackElo "2507"]
[TimeControl "180+1"]
[EndTime "9:17:16 PST"]
[Termination "stollenmonster won on time"]

1. e4 {[%clk 0:03:00.9]} 1... c5 {[%clk 0:02:59.5]} 2. g3 {[%clk 0:03:01.4]}
2... d5 {[%clk 0:02:57.7]} 3. Bg2 {[%clk 0:03:01.3]} 3... dxe4 {[%clk
0:02:55.8]} 4. Bxe4 {[%clk 0:03:02.2]} 4... Nf6 {[%clk 0:02:55.2]} 5. Bg2 {[%clk
0:03:02.6]} 5... g6 {[%clk 0:02:53.5]} 6. Ne2 {[%clk 0:03:03.1]} 6... Bg7 {[%clk
0:02:53.6]} 7. Nbc3 {[%clk 0:03:03.7]} 7... Nc6 {[%clk 0:02:51.6]} 8. O-O {[%clk
0:03:04.2]} 8... O-O {[%clk 0:02:51.2]} 9. d3 {[%clk 0:03:04.8]} 9... Nd4 {[%clk
0:02:42.5]} 10. h3 {[%clk 0:03:04.6]} 10... Nd7 {[%clk 0:02:30.4]} 11. Be3
{[%clk 0:03:01.8]} 11... Qc7 {[%clk 0:02:11.9]} 12. Nd5 {[%clk 0:03:00.5]} 12...
Qd6 {[%clk 0:02:02.4]} 13. c3 {[%clk 0:02:59.9]} 13... Nxe2+ {[%clk 0:02:00.2]}
14. Qxe2 {[%clk 0:03:00.5]} 14... Nb6 {[%clk 0:01:51.4]} 15. Nxb6 {[%clk
0:02:48.6]} 15... axb6 {[%clk 0:01:52.3]} 16. a3 {[%clk 0:02:49.1]} 16... Be6
{[%clk 0:01:40.3]} 17. Rfd1 {[%clk 0:02:44.1]} 17... Bd5 {[%clk 0:01:30.8]} 18.
d4 {[%clk 0:02:43.5]} 18... Bxg2 {[%clk 0:01:29]} 19. Kxg2 {[%clk 0:02:39.2]}
19... Qd5+ {[%clk 0:01:02.6]} 20. Qf3 {[%clk 0:02:37.5]} 20... Qxf3+ {[%clk
0:01:02.6]} 21. Kxf3 {[%clk 0:02:37.6]} 21... c4 {[%clk 0:01:03.5]} 22. d5
{[%clk 0:02:24.9]} 22... b5 {[%clk 0:01:03.3]} 23. Bc5 {[%clk 0:02:22.2]} 23...
Bf6 {[%clk 0:01:02.1]} 24. d6 {[%clk 0:02:22.1]} 24... exd6 {[%clk 0:00:59.3]}
25. Rxd6 {[%clk 0:02:20.3]} 25... Be7 {[%clk 0:00:37.3]} 26. Rd5 {[%clk
0:02:19.6]} 26... Rfd8 {[%clk 0:00:35.5]} 27. Rad1 {[%clk 0:02:16.3]} 27... Rxd5
{[%clk 0:00:29.3]} 28. Rxd5 {[%clk 0:02:16.7]} 28... Rd8 {[%clk 0:00:21.8]} 29.
Ke4 {[%clk 0:02:00.7]} 29... f5+ {[%clk 0:00:10.9]} 30. Ke5 {[%clk 0:02:00.9]}
30... Re8 {[%clk 0:00:08.2]} 31. Bxe7 {[%clk 0:01:57.1]} 31... Rxe7+ {[%clk
0:00:09.1]} 32. Kf6 {[%clk 0:01:53.2]} 32... Rf7+ {[%clk 0:00:08.1]} 33. Ke6
{[%clk 0:01:53.9]} 33... Kg7 {[%clk 0:00:07.8]} 34. Rd7 {[%clk 0:01:25.8]} 34...
Rxd7 {[%clk 0:00:05.9]} 35. Kxd7 {[%clk 0:01:26.7]} 35... f4 {[%clk 0:00:06.4]}
36. Kc7 {[%clk 0:01:08.9]} 36... Kf6 {[%clk 0:00:07.3]} 37. Kxb7 {[%clk
0:01:08.7]} 37... f3 {[%clk 0:00:05.8]} 38. Kc6 {[%clk 0:01:03.7]} 38... Ke5
{[%clk 0:00:06.1]} 39. Kxb5 {[%clk 0:01:03.6]} 39... Ke4 {[%clk 0:00:07]} 40. a4
{[%clk 0:01:04.1]} 40... Kd3 {[%clk 0:00:07.3]} 41. a5 {[%clk 0:01:04.8]} 41...
Ke2 {[%clk 0:00:08.1]} 42. a6 {[%clk 0:01:05.5]} 42... Kxf2 {[%clk 0:00:08.1]}
43. a7 {[%clk 0:01:06.1]} 43... Kg1 {[%clk 0:00:05.7]} 44. a8=Q {[%clk 0:01:06]}
44... f2 {[%clk 0:00:06.3]} 45. Qf3 {[%clk 0:01:00.6]} 45... f1=Q {[%clk
0:00:06]} 46. Qxf1+ {[%clk 0:01:00.8]} 46... Kxf1 {[%clk 0:00:06.9]} 47. Kxc4
{[%clk 0:01:01]} 47... Kg2 {[%clk 0:00:07.3]} 48. b4 {[%clk 0:01:01.3]} 1-0